bitfinex/quotes_BTCUSD_20251027
["timestamp","ask_amount","ask_price","bid_price","bid_amount"]
[1761546694069,0.17304031,115580.0,115570.0,0.6728861]
[1761546694511,0.17304031,115580.0,115570.0,0.48450382]
[1761546694720,0.17404031,115580.0,115570.0,0.48450382]
[1761546694945,0.17404031,115580.0,115560.0,0.20043525]
[1761546694946,0.17305529,115570.0,115560.0,0.20043525]
[1761546695074,0.17305529,115570.0,115560.0,0.96317935]
[1761546695518,0.17305529,115570.0,115560.0,1.44768317]
[1761546696223,0.17405529,115570.0,115560.0,1.44768317]
[1761546697371,0.17405529,115570.0,115560.0,1.29548317]
[1761546697569,0.17305529,115570.0,115560.0,1.29548317]
[1761546697817,0.17305529,115570.0,115560.0,1.20566416]
[1761546697997,0.17405529,115570.0,115560.0,1.20566416]
[1761546698394,0.17305529,115570.0,115560.0,1.20566416]
[1761546698779,0.17405529,115570.0,115560.0,1.20566416]
[1761546698980,0.17405529,115570.0,115560.0,1.19689664]
[1761546699195,0.17305529,115570.0,115560.0,1.19689664]
[1761546699618,0.17405529,115570.0,115560.0,1.19689664]
[1761546699844,0.17405529,115570.0,115560.0,1.19889664]
[1761546700155,0.17405529,115570.0,115560.0,1.19689664]
[1761546700721,0.17405529,115570.0,115560.0,0.227889]
[1761546700943,0.17405529,115570.0,115560.0,1.19689664]
[1761546701881,0.32625529,115570.0,115560.0,1.19689664]
[1761546704536,0.32625529,115570.0,115560.0,0.71239282]
[1761546706575,0.32625529,115570.0,115560.0,0.227889]
[1761546706798,0.37618485,115570.0,115560.0,0.67621054]
[1761546706990,0.37618485,115570.0,115560.0,0.0004]
[1761546707196,0.37618485,115570.0,115560.0,0.48490382]
[1761546707402,0.37618485,115570.0,115560.0,0.0004]
[1761546707634,0.37618485,115570.0,115560.0,0.48490382]
[1761546708577,0.37618485,115570.0,115560.0,0.0004]
[1761546708766,0.37618485,115570.0,115560.0,0.48490382]
[1761546709848,0.32625529,115570.0,115560.0,0.48490382]
[1761546712683,0.32625529,115570.0,115560.0,0.0004]
[1761546712914,0.32625529,115570.0,115560.0,0.48490382]
[1761546713860,0.32625529,115570.0,115560.0,0.0004]
[1761546714063,0.32625529,115570.0,115560.0,0.48490382]
[1761546715683,0.17405529,115570.0,115560.0,0.48490382]
[1761546715877,0.17405529,115570.0,115560.0,0.0004]
[1761546716085,0.17405529,115570.0,115560.0,0.43143796]
[1761546716239,0.32625529,115570.0,115560.0,0.43143796]
[1761546717102,0.32625529,115570.0,115560.0,0.0004]
[1761546717315,0.37618485,115570.0,115560.0,0.43143796]
[1761546720719,0.37618485,115570.0,115560.0,0.0004]
[1761546721345,0.32625529,115570.0,115560.0,0.0004]
[1761546721951,0.4160743,115570.0,115560.0,0.0004]
[1761546722475,0.84611226,115570.0,115560.0,0.0004]
[1761546722676,0.86576566,115570.0,115560.0,0.0004]
[1761546722884,0.4347277,115570.0,115560.0,0.0004]
[1761546723261,0.52754671,115570.0,115560.0,0.0004]
[1761546723512,0.52454671,115570.0,115560.0,0.0004]
[1761546723750,0.53254671,115570.0,115560.0,0.0004]
[1761546723950,0.53154646,115570.0,115560.0,0.0004]
[1761546724355,0.53354646,115570.0,115560.0,0.0004]
[1761546725608,1.33790085,115570.0,115560.0,1e-08]
[1761546725832,0.31484389,115570.0,115560.0,1e-08]
[1761546726041,0.31484389,115570.0,115560.0,0.43103797]
[1761546726042,0.18305529,115570.0,115560.0,0.43103797]
[1761546726246,0.33525529,115570.0,115560.0,1e-08]
[1761546728906,0.33525529,115570.0,115560.0,0.43103797]
[1761546730238,0.33525529,115570.0,115560.0,1e-08]
[1761546730459,0.38608485,115570.0,115560.0,1e-08]
[1761546735159,0.47590386,115570.0,115560.0,1e-08]
[1761546735744,0.49456501,115570.0,115560.0,1e-08]
[1761546737750,0.92560297,115570.0,115560.0,1e-08]
[1761546738892,1.26560297,115570.0,115560.0,1e-08]
[1761546739098,0.83456501,115570.0,115560.0,1e-08]
[1761546742498,0.88992501,115570.0,115560.0,1e-08]
[1761546748455,1.33096296,115570.0,115560.0,1e-08]
[1761546748657,1.3542794,115570.0,115560.0,1e-08]
[1761546749266,1.3522794,115570.0,115560.0,1e-08]
[1761546749651,1.3462794,115570.0,115560.0,1e-08]
[1761546749871,1.41384515,115570.0,115560.0,1e-08]
[1761546751556,0.95410821,115560.0,115550.0,1.84474255]
[1761546751759,0.72136942,115560.0,115550.0,1.84474255]
[1761546752684,0.72336942,115560.0,115550.0,1.84474255]
[1761546753200,0.72736942,115560.0,115550.0,1.84474255]
[1761546753607,0.72936942,115560.0,115550.0,1.84474255]
[1761546755406,0.72196942,115560.0,115550.0,1.84474255]
[1761546756404,1.15300738,115560.0,115550.0,1.84474255]
[1761546757156,1.16153166,115560.0,115550.0,1.84474255]
[1761546757980,1.15300738,115560.0,115550.0,1.84474255]
[1761546761560,1.17632382,115560.0,115550.0,1.84474255]
[1761546761798,1.18518706,115560.0,115550.0,1.84474255]
[1761546763399,1.17632382,115560.0,115550.0,1.84474255]
[1761546764939,1.192499,115560.0,115550.0,1.84474255]
[1761546765168,0.76146104,115560.0,115550.0,1.84474255]
[1761546765347,1.192499,115560.0,115550.0,1.84474255]
[1761546767504,1.20136431,115560.0,115550.0,1.84474255]
[1761546771044,1.23248807,115560.0,115550.0,1.84474255]
[1761546772647,1.17804787,115560.0,115550.0,1.35634634]
[1761546773017,0.74700991,115560.0,115550.0,1.35634634]
[1761546773223,1.17804787,115560.0,115550.0,1.35634634]
[1761546773633,0.74700991,115560.0,115550.0,1.35634634]
[1761546773940,1.17804787,115560.0,115550.0,1.35634634]
[1761546774375,0.76146104,115560.0,115550.0,1.35634634]
[1761546775121,0.77009669,115560.0,115550.0,1.35634634]
[1761546775323,0.76146104,115560.0,115550.0,1.35634634]
[1761546775523,0.96906104,115560.0,115550.0,1.35634634]
[1761546777293,0.76146104,115560.0,115550.0,1.35634634]
[1761546777430,0.9457446,115560.0,115550.0,1.35634634]
[1761546777838,1.4309974,115560.0,115550.0,1.35634634]
[1761546778215,1.45434133,115560.0,115550.0,1.35634634]
[1761546779036,0.29835309,115560.0,115550.0,1.84159914]
[1761546779215,0.28215042,115560.0,115550.0,1.84159914]
[1761546779415,0.43439042,115560.0,115550.0,1.35634634]
[1761546779736,0.43439042,115560.0,115550.0,1.84159914]
[1761546779935,0.52420943,115560.0,115550.0,1.84159914]
[1761546780205,0.37196943,115560.0,115550.0,1.84159914]
[1761546780397,0.52420943,115560.0,115550.0,1.84159914]
[1761546780579,0.50554828,115560.0,115550.0,1.84159914]
[1761546782057,0.008,115560.0,115550.0,2.32685194]
[1761546782258,0.008,115560.0,115550.0,2.52978154]
[1761546782399,0.008,115560.0,115550.0,2.49993718]
[1761546783136,0.006,115560.0,115550.0,2.49993718]
[1761546783495,0.007,115560.0,115550.0,2.49993718]
[1761546783895,0.006,115560.0,115550.0,2.49993718]
[1761546784106,0.17305818,115570.0,115550.0,2.49993718]
[1761546784305,0.19979582,115570.0,115560.0,1.29581586]
[1761546784758,0.17305529,115570.0,115560.0,1.29581586]
[1761546785962,0.17305529,115570.0,115560.0,1.30181586]
[1761546786212,0.17405529,115570.0,115560.0,1.30181586]
[1761546786414,0.001,115570.0,115560.0,1.30181586]
[1761546786742,0.18169232,115580.0,115560.0,1.31026915]
[1761546786960,0.23325321,115580.0,115570.0,0.4852528]
[1761546788513,0.18169232,115580.0,115570.0,0.4852528]
[1761546788713,0.18169232,115580.0,115570.0,0.4882528]
[1761546789114,0.18269232,115580.0,115570.0,0.4882528]
[1761546789749,0.18169232,115580.0,115570.0,0.4882528]
[1761546789952,0.18369232,115580.0,115570.0,0.4882528]
[1761546792132,0.18369232,115580.0,115570.0,0.003]
[1761546792308,0.18369232,115580.0,115570.0,0.4882528]
[1761546793548,0.18369232,115580.0,115570.0,0.003]
[1761546793756,0.18369232,115580.0,115570.0,0.4882528]
[1761546795868,0.23545321,115580.0,115570.0,0.48599727]
[1761546796955,0.23545321,115580.0,115570.0,0.00074447]
[1761546797180,0.32527222,115580.0,115570.0,0.00074447]
[1761546797402,0.81052502,115580.0,115570.0,0.00074447]
[1761546806356,0.82915208,115580.0,115570.0,0.00074447]
[1761546806586,0.81052502,115580.0,115570.0,0.00074447]
[1761546807364,0.82916128,115580.0,115570.0,0.00074447]
[1761546811023,0.34390848,115580.0,115570.0,0.00074447]
[1761546811223,0.82716128,115580.0,115570.0,0.00074447]
[1761546811424,0.17307026,115560.0,115550.0,1.35634634]
[1761546811631,0.93491592,115560.0,115550.0,1.35634634]
[1761546811862,0.95355218,115560.0,115550.0,1.35634634]
[1761546813607,1.30355217,115560.0,115550.0,1.35634634]
[1761546813931,1.84324517,115560.0,115550.0,1.35634634]
[1761546814119,1.84524517,115560.0,115550.0,1.35634634]
[1761546814322,1.84522831,115560.0,115550.0,1.35634634]
[1761546814549,1.35997551,115560.0,115550.0,1.35634634]
[1761546815143,1.38594484,115560.0,115550.0,1.35634634]
[1761546815363,1.38594484,115560.0,115550.0,0.77622852]
[1761546815364,1.80313804,115560.0,115550.0,0.77622852]
[1761546815563,1.81976794,115560.0,115550.0,0.72291929]
[1761546815855,1.82176794,115560.0,115550.0,0.72291929]
[1761546816354,1.82176794,115560.0,115550.0,0.32856799]
[1761546816551,1.82176794,115560.0,115550.0,0.25847857]
[1761546817161,0.62851917,115560.0,115550.0,0.74373137]
[1761546817303,0.66524927,115560.0,115550.0,0.74373137]
[1761546817509,0.81744927,115560.0,115550.0,0.74373137]
[1761546817708,0.81744927,115560.0,115550.0,0.25847857]
[1761546818061,0.90226828,115560.0,115550.0,0.25847857]
[1761546818280,0.90026828,115560.0,115550.0,0.25847857]
[1761546818435,0.90426828,115560.0,115550.0,0.25847857]
[1761546821880,0.90426828,115560.0,115550.0,0.25847857]
[1761546822247,0.69670828,115560.0,115550.0,0.25847857]
[1761546822452,0.90426828,115560.0,115550.0,0.25847857]
[1761546824721,0.84890828,115560.0,115550.0,0.25847857]
[1761546824925,0.41908927,115560.0,115550.0,0.74373137]
[1761546825344,0.41908927,115560.0,115550.0,0.25847857]
[1761546828104,0.26688927,115560.0,115550.0,0.74373137]
[1761546828302,0.41908927,115560.0,115550.0,0.74373137]
[1761546828710,0.48384102,115560.0,115550.0,0.74373137]
[1761546829238,0.48384102,115560.0,115550.0,0.25847857]
[1761546829551,0.48384102,115560.0,115550.0,0.74373137]
[1761546830321,0.26688927,115560.0,115550.0,0.25847857]
[1761546830527,0.41908927,115560.0,115550.0,0.74373137]
[1761546831447,0.41708927,115560.0,115550.0,0.25847857]
[1761546831658,0.90334207,115560.0,115550.0,0.25847857]
[1761546831864,0.41808927,115560.0,115550.0,0.25847857]
[1761546832065,0.50790828,115560.0,115550.0,0.25847857]
[1761546832483,0.50490828,115560.0,115550.0,0.25847857]
[1761546832964,0.50490828,115560.0,115550.0,0.26147857]
[1761546833162,0.50490828,115560.0,115550.0,0.25847857]
[1761546833576,0.50490828,115560.0,115550.0,0.25947857]
[1761546833782,0.35270828,115560.0,115550.0,0.25947857]
[1761546834004,0.50490828,115560.0,115550.0,0.25947857]
[1761546834405,1.00878884,115560.0,115550.0,0.25947857]
[1761546834580,1.00978884,115560.0,115550.0,0.25947857]
[1761546834800,0.52453604,115560.0,115550.0,0.25947857]
[1761546835115,0.85658884,115560.0,115550.0,0.25947857]
[1761546835332,1.06614884,115560.0,115550.0,0.25947857]
[1761546835532,0.58089604,115560.0,115550.0,0.25947857]
[1761546835680,0.52553604,115560.0,115550.0,0.25947857]
[1761546835886,0.58089604,115560.0,115550.0,0.25947857]
[1761546836151,1.06614884,115560.0,115550.0,0.25947857]
[1761546836917,0.37333604,115560.0,115550.0,0.25947857]
[1761546837073,1.06614884,115560.0,115550.0,0.25947857]
[1761546837510,0.85858884,115560.0,115550.0,0.25947857]
[1761546837702,1.06614884,115560.0,115550.0,0.25947857]
[1761546838289,1.06414884,115560.0,115550.0,0.25947857]
[1761546838740,0.85858884,115560.0,115550.0,0.25947857]
[1761546838976,0.62351703,115560.0,115550.0,0.74373137]
[1761546839250,0.77371703,115560.0,115550.0,0.74373137]
[1761546839416,0.77771703,115560.0,115550.0,0.74373137]
[1761546839807,0.77771703,115560.0,115550.0,0.25847857]
[1761546842341,0.77371703,115560.0,115550.0,0.25847857]
[1761546842549,0.86353604,115560.0,115550.0,0.25947857]
[1761546842749,0.86553604,115560.0,115550.0,0.25947857]
[1761546843091,0.71333604,115560.0,115550.0,0.25947857]
[1761546843283,0.86553604,115560.0,115550.0,0.25947857]
[1761546845626,0.37333604,115560.0,115550.0,0.25947857]
[1761546845841,0.52553604,115560.0,115550.0,0.25947857]
[1761546846818,0.28351703,115560.0,115550.0,0.69068496]
[1761546847031,0.43571703,115560.0,115550.0,0.69068496]
[1761546847382,0.43571703,115560.0,115550.0,0.25947857]
[1761546848870,0.28351703,115560.0,115550.0,0.25947857]
[1761546849094,0.19369802,115560.0,115550.0,0.69068496]
[1761546849515,0.002,115560.0,115550.0,0.8637702]
[1761546854223,0.002,115560.0,115550.0,1.76097788]
[1761546854790,0.002,115560.0,115550.0,1.96097788]
[1761546854951,0.17302573,115590.0,115580.0,0.17303867]
[1761546855156,0.18166089,115600.0,115580.0,0.60424506]
[1761546855421,0.2179915,115600.0,115580.0,0.60424506]
[1761546856761,0.2179915,115600.0,115580.0,0.60724506]
[1761546857127,0.17302534,115590.0,115580.0,0.60724506]
[1761546857331,0.2189915,115600.0,115580.0,0.60724506]
[1761546857534,0.17302534,115590.0,115580.0,0.60724506]
[1761546857919,0.21222702,115590.0,115580.0,0.60724506]
[1761546858281,0.21322702,115590.0,115580.0,0.60424506]
[1761546858515,0.21322702,115590.0,115580.0,0.60624506]
[1761546859352,0.21322702,115590.0,115580.0,0.002]
[1761546859558,0.21322702,115590.0,115580.0,0.6062467]
[1761546859812,0.21322702,115590.0,115580.0,0.17504031]
[1761546860214,0.21322702,115590.0,115580.0,0.6062467]
[1761546860332,0.21322702,115590.0,115580.0,0.60804797]
[1761546862240,0.001,115590.0,115580.0,0.98423025]
[1761546862408,0.001,115590.0,115580.0,1.07404926]
[1761546862827,0.001,115590.0,115580.0,1.26535598]
[1761546863237,0.30568153,115620.0,115600.0,0.17300184]
[1761546863405,0.30568153,115620.0,115610.0,0.43120639]
[1761546863699,0.32003699,115620.0,115610.0,0.43120639]
[1761546863907,0.19603699,115620.0,115610.0,0.43120639]
[1761546864123,0.18168153,115620.0,115610.0,0.43120639]
[1761546864531,0.18268153,115620.0,115610.0,0.43120639]
[1761546865047,0.18268153,115620.0,115610.0,0.6042018]
[1761546865250,0.18268153,115620.0,115610.0,0.6082018]
[1761546866236,0.18168153,115620.0,115610.0,0.6082018]
[1761546866661,0.18268153,115620.0,115610.0,0.6082018]
[1761546867490,0.18268153,115620.0,115610.0,0.43520639]
[1761546867693,0.32328941,115620.0,115610.0,0.004]
[1761546868466,0.17301038,115600.0,115590.0,0.7649838]
[1761546868637,0.17301038,115600.0,115590.0,0.59197765]
[1761546868840,0.17301038,115600.0,115590.0,0.76500299]
[1761546869126,0.17301038,115600.0,115590.0,0.61288299]
[1761546870097,0.22282424,115600.0,115590.0,0.43120639]
[1761546870302,0.17301038,115600.0,115590.0,0.43120639]
[1761546871057,0.17701038,115600.0,115590.0,0.43120639]
[1761546871488,0.17801038,115600.0,115590.0,0.43120639]
[1761546873953,0.17801038,115600.0,115580.0,0.80300226]
[1761546874167,0.17801038,115600.0,115590.0,0.43120639]
[1761546874380,0.17302534,115590.0,115580.0,0.00180127]
[1761546874589,0.17302534,115590.0,115580.0,0.43300766]
[1761546874814,0.17302534,115590.0,115580.0,0.60604797]
[1761546875046,0.17301038,115600.0,115580.0,0.60604797]
[1761546875202,0.32613348,115600.0,115590.0,0.43120639]
[1761546875441,0.36160032,115600.0,115590.0,0.43120639]
[1761546876014,0.32613348,115600.0,115590.0,0.43120639]
[1761546876840,0.32513348,115600.0,115590.0,0.43120639]
[1761546877036,0.17301348,115600.0,115590.0,0.43120639]
[1761546877235,0.32513348,115600.0,115590.0,0.43120639]
[1761546877489,0.32913348,115600.0,115590.0,0.43120639]
[1761546878028,0.17801348,115600.0,115590.0,0.43120639]
[1761546878419,0.33013348,115600.0,115590.0,0.43120639]
[1761546879436,0.17801348,115600.0,115590.0,0.43120639]
[1761546879656,0.33013348,115600.0,115590.0,0.43120639]
[1761546879857,0.17801348,115600.0,115590.0,0.43120639]
[1761546880060,0.33013348,115600.0,115590.0,0.43120639]
[1761546880329,0.17801348,115600.0,115590.0,0.43120639]
[1761546880458,0.33013348,115600.0,115590.0,0.43120639]
[1761546880858,0.17801348,115600.0,115580.0,0.17484158]
[1761546881055,0.17801348,115600.0,115590.0,0.60423173]
[1761546881306,0.33013348,115600.0,115590.0,0.60423173]
[1761546881852,0.32913348,115600.0,115590.0,0.60423173]
[1761546883198,0.33013348,115600.0,115590.0,0.60423173]
[1761546883625,0.17701348,115600.0,115590.0,0.60423173]
[1761546884012,0.21837708,115600.0,115590.0,0.60423173]
[1761546884213,0.17801348,115600.0,115590.0,0.60423173]
[1761546884754,0.17801348,115600.0,115590.0,0.75635173]
[1761546887711,0.005,115600.0,115590.0,0.75635173]
[1761546889371,0.17801038,115600.0,115590.0,0.75635173]
[1761546889598,0.005,115600.0,115590.0,0.75635173]
[1761546889983,0.17801038,115600.0,115590.0,0.75635173]
[1761546890905,0.17801038,115600.0,115590.0,0.32514534]
[1761546891106,0.17801038,115600.0,115590.0,0.58332639]
[1761546892902,0.17801038,115600.0,115590.0,0.75635173]
[1761546901017,0.005,115600.0,115590.0,0.75635173]
[1761546901685,0.17801038,115600.0,115590.0,0.75635173]
[1761546901886,0.17801038,115600.0,115590.0,1.29439686]
[1761546902806,0.005,115600.0,115590.0,1.29439686]
[1761546905335,0.17801038,115600.0,115590.0,1.29439686]
[1761546905910,0.005,115600.0,115590.0,1.29439686]
[1761546908145,0.005,115600.0,115590.0,1.95170487]
[1761546908351,0.005,115600.0,115590.0,2.20702487]
[1761546908560,0.005,115600.0,115590.0,2.23297228]
[1761546909181,0.005,115600.0,115590.0,2.20702487]
[1761546909182,0.004,115600.0,115590.0,2.20702487]
[1761546909394,0.005,115600.0,115590.0,2.20702487]
[1761546909821,0.001,115600.0,115590.0,2.20702487]
[1761546910233,0.002,115600.0,115590.0,2.20702487]
[1761546916424,0.002,115600.0,115590.0,2.00702487]
[1761546920899,0.002,115600.0,115590.0,1.79958487]
[1761546921121,0.002,115600.0,115590.0,1.91716586]
[1761546921599,0.002,115600.0,115590.0,1.57716586]
[1761546921779,0.002,115600.0,115590.0,1.91716586]
[1761546926401,0.17501038,115600.0,115590.0,1.91716586]
[1761546926807,0.002,115600.0,115590.0,1.91716586]
[1761546927192,0.17501038,115600.0,115590.0,1.91716586]
[1761546928018,0.17501038,115600.0,115590.0,1.86180586]
[1761546928213,0.17501038,115600.0,115590.0,1.52180586]
[1761546930585,0.002,115600.0,115590.0,1.52180586]
[1761546940065,0.002,115600.0,115590.0,0.55255434]
[1761546940253,0.002,115600.0,115590.0,1.52180586]
[1761546943382,0.00154703,115600.0,115590.0,1.52180586]
[1761546945506,0.17455741,115600.0,115590.0,1.52180586]
[1761546945717,0.17455741,115600.0,115590.0,1.57712586]
[1761546945925,0.17455741,115600.0,115590.0,0.40051434]
[1761546946099,0.17455741,115600.0,115590.0,1.52180586]
[1761546955399,0.00154703,115600.0,115590.0,1.52180586]
[1761546961717,0.00154703,115600.0,115590.0,1.54775536]
[1761546961931,0.00154703,115600.0,115590.0,1.00922245]
[1761546962502,0.00154703,115600.0,115590.0,1.06454245]
[1761546965577,0.17455741,115600.0,115590.0,1.06454245]
[1761546967098,0.17455741,115600.0,115590.0,1.00922245]
[1761546967328,0.17455741,115600.0,115590.0,0.0259495]
[1761546967532,0.17302534,115590.0,115580.0,0.00180127]
[1761546967744,0.17302534,115590.0,115580.0,0.44982391]
[1761546967954,0.17302534,115590.0,115580.0,0.43251988]
[1761546968974,0.17302534,115590.0,115580.0,0.43451988]
[1761546969406,0.19897906,115590.0,115580.0,0.43451988]
[1761546969938,0.19897906,115590.0,115580.0,0.43251988]
[1761546970151,0.19897906,115590.0,115580.0,0.43451988]
[1761546970581,0.19897906,115590.0,115580.0,0.43251988]
[1761546971836,0.20397906,115590.0,115580.0,0.43251988]
[1761546975267,0.20397906,115590.0,115580.0,0.00180127]
[1761546975406,0.20397906,115590.0,115580.0,0.44982391]
[1761546975605,0.20397906,115590.0,115580.0,0.43251988]
[1761546977023,0.20397906,115590.0,115580.0,0.00180127]
[1761546977225,0.20397906,115590.0,115580.0,0.44982391]
[1761546977423,0.20397906,115590.0,115580.0,0.43251988]
[1761546982276,0.20397906,115590.0,115580.0,0.00180127]
[1761546982416,0.20397906,115590.0,115580.0,0.44982391]
[1761546982777,0.20397906,115590.0,115580.0,0.43251988]
[1761546986626,0.03095372,115590.0,115580.0,0.60556019]
[1761546986855,0.20397906,115590.0,115580.0,0.60556019]
[1761546995436,0.03095372,115590.0,115580.0,0.60556019]
[1761546996737,0.20397906,115590.0,115580.0,0.60556019]
[1761547002004,0.15204,115620.0,115590.0,0.34999999]
[1761547002196,0.1989641,115600.0,115590.0,0.9327586]
[1761547002614,0.02595372,115600.0,115590.0,1.10578394]
[1761547003884,0.33470876,115620.0,115600.0,0.00999999]
[1761547004088,0.02595269,115610.0,115600.0,0.4407186]
[1761547005577,0.03095269,115610.0,115600.0,0.61372898]
[1761547005942,0.03295269,115610.0,115600.0,0.61372898]
[1761547006738,0.02595269,115610.0,115600.0,0.61372898]
[1761547007145,0.02895269,115610.0,115600.0,0.61372898]
[1761547007375,0.02895269,115610.0,115600.0,0.18301037]
[1761547007582,0.02895269,115610.0,115600.0,0.61372898]
[1761547007986,0.02995269,115610.0,115600.0,0.61372898]
[1761547013944,0.02995269,115610.0,115600.0,0.4407186]
[1761547014150,0.02995269,115610.0,115600.0,0.61372898]
[1761547021346,0.004,115610.0,115600.0,0.61372898]
[1761547023918,0.004,115610.0,115600.0,0.66756678]
[1761547025922,0.17699541,115610.0,115600.0,0.00999999]
[1761547026131,0.22097517,115610.0,115600.0,0.16199999]
[1761547026340,0.22097517,115610.0,115600.0,0.6465564]
[1761547026544,0.17699541,115610.0,115600.0,0.6465564]
[1761547028388,0.17699541,115610.0,115600.0,0.63655641]
[1761547028914,0.17699541,115610.0,115600.0,0.6465564]
[1761547029620,0.17699541,115610.0,115600.0,0.63655641]
[1761547029827,0.17699541,115610.0,115600.0,0.6465564]
[1761547030074,0.004,115610.0,115600.0,0.6465564]
[1761547030289,0.004,115610.0,115600.0,0.81956678]
[1761547030612,0.17699541,115610.0,115600.0,0.6465564]
[1761547038641,0.17699541,115610.0,115600.0,0.63655641]
[1761547038857,0.17699541,115610.0,115600.0,0.6465564]
[1761547039282,0.17699541,115610.0,115600.0,0.63655641]
[1761547041574,0.17699541,115610.0,115600.0,0.152]
[1761547041784,0.17699541,115610.0,115600.0,0.63655641]
[1761547042666,0.17699541,115610.0,115600.0,0.48455641]
[1761547043561,0.17699541,115610.0,115590.0,0.50455639]
[1761547043562,0.17301038,115600.0,115590.0,0.50455639]
[1761547043770,0.17301038,115600.0,115590.0,0.65651639]
[1761547044398,0.37193517,115610.0,115590.0,0.82954173]
[1761547044610,0.32795541,115610.0,115600.0,0.48455641]
[1761547045335,0.17301038,115600.0,115590.0,0.34498532]
[1761547045535,0.17301038,115600.0,115590.0,0.82954173]
[1761547046495,0.17401038,115600.0,115590.0,0.82954173]
[1761547046906,0.17401038,115600.0,115590.0,0.34498532]
[1761547047056,0.17401038,115600.0,115590.0,0.82954173]
[1761547048902,0.001,115600.0,115590.0,0.82954173]
[1761547049313,0.17401038,115600.0,115590.0,1.31409814]
[1761547049622,0.17401038,115600.0,115590.0,1.1410728]
[1761547050733,0.17401038,115600.0,115590.0,1.31409814]
[1761547052284,0.001,115600.0,115590.0,1.31409814]
[1761547052510,0.001,115600.0,115590.0,1.35028042]
[1761547054796,0.001,115600.0,115590.0,1.69028042]
[1761547055567,0.001,115600.0,115590.0,2.65596256]
[1761547056144,0.001,115600.0,115590.0,2.68190997]
[1761547056558,0.17300843,115640.0,115620.0,0.17297638]
[1761547056746,0.26282744,115640.0,115630.0,0.48455641]
[1761547058306,0.28642172,115640.0,115630.0,0.48455641]
[1761547058782,0.29142172,115640.0,115630.0,0.48455641]
[1761547058988,0.29342172,115640.0,115630.0,0.48455641]
[1761547059323,0.26982744,115640.0,115630.0,0.48455641]
[1761547061258,0.17296549,115630.0,115620.0,0.16195999]
[1761547061470,0.17296549,115630.0,115620.0,0.15196]
[1761547061678,0.17296549,115630.0,115620.0,0.63651641]
[1761547061881,0.17296549,115630.0,115620.0,0.48455641]
[1761547062456,0.17396549,115630.0,115620.0,0.48455641]
[1761547062660,0.17696549,115630.0,115620.0,0.48455641]
[1761547063969,0.17696549,115630.0,115610.0,0.00999999]
[1761547063970,0.17298045,115620.0,115610.0,0.00999999]
[1761547064172,0.31335855,115630.0,115610.0,0.81947181]
[1761547064478,0.2667845,115630.0,115620.0,0.48455641]
[1761547064674,0.2657845,115630.0,115620.0,0.48455641]
[1761547065114,0.2627845,115630.0,115620.0,0.48455641]
[1761547065641,0.17298045,115620.0,115610.0,0.16191999]
[1761547066166,0.17298045,115620.0,115610.0,0.15192]
[1761547066829,0.17298045,115620.0,115610.0,0.6464764]
[1761547067212,0.17298045,115620.0,115610.0,0.63647641]
[1761547067425,0.17298045,115620.0,115610.0,0.6464764]
[1761547067722,0.17398045,115620.0,115610.0,0.63647641]
[1761547067923,0.17398045,115620.0,115610.0,0.6464764]
[1761547069392,0.17398045,115620.0,115610.0,0.63647641]
[1761547069614,0.17398045,115620.0,115610.0,0.6464764]
[1761547071010,0.17398045,115620.0,115610.0,0.63647641]
[1761547071219,0.17398045,115620.0,115610.0,0.6464764]
[1761547071440,0.001,115620.0,115610.0,1.29402823]
[1761547071636,0.001,115620.0,115610.0,1.31402821]
[1761547078378,0.001,115620.0,115610.0,0.34491539]
[1761547078767,0.001,115620.0,115610.0,1.31402821]
[1761547081774,0.001,115620.0,115610.0,1.35021049]
[1761547081981,0.001,115620.0,115610.0,1.69021049]
[1761547083929,0.001,115620.0,115610.0,1.15164867]
[1761547087888,0.001,115620.0,115610.0,0.72109767]
[1761547088105,0.001,115620.0,115610.0,1.15164867]
[1761547089283,0.001,115620.0,115610.0,0.72109767]
[1761547089494,0.001,115620.0,115610.0,1.17759377]
[1761547094241,0.001,115620.0,115610.0,0.74704277]
[1761547094422,0.001,115620.0,115610.0,1.17759377]
[1761547097608,0.1988995,115660.0,115650.0,0.17293558]
[1761547097609,0.0259451,115660.0,115650.0,0.17293558]
[1761547097834,0.04687819,115680.0,115670.0,0.56908793]
[1761547097835,0.0003,115680.0,115670.0,0.56908793]
[1761547098059,0.0003,115680.0,115670.0,1.15167893]
[1761547098560,0.0003,115680.0,115670.0,1.17761057]
[1761547099642,0.0013,115680.0,115670.0,1.17761057]
[1761547100072,0.0013,115680.0,115670.0,1.189162]
[1761547100915,0.0013,115680.0,115670.0,1.18061057]
[1761547102723,0.00047663,115690.0,115680.0,0.96037971]
[1761547102949,1e-08,115690.0,115680.0,1.96658072]
[1761547104032,1e-08,115690.0,115680.0,1.97758072]
[1761547104262,0.00061569,115690.0,115680.0,1.97758072]
[1761547104675,0.00161569,115690.0,115680.0,1.97758072]
[1761547105102,0.00061569,115690.0,115680.0,1.97758072]
[1761547105948,0.00061569,115690.0,115680.0,1.99715165]
[1761547106381,0.00061569,115690.0,115680.0,1.94187165]
[1761547106580,0.00061569,115690.0,115680.0,2.14943165]
[1761547107187,0.00061569,115690.0,115680.0,1.78715166]
[1761547107391,0.00061569,115690.0,115680.0,1.94943165]
[1761547107824,0.00061569,115690.0,115680.0,1.93943166]
[1761547108042,0.00061569,115690.0,115680.0,1.94943165]
[1761547108190,0.00061569,115690.0,115680.0,1.93943166]
[1761547108786,0.00061569,115690.0,115680.0,1.92843166]
[1761547108991,0.00061569,115690.0,115680.0,1.73087165]
[1761547109188,0.00061569,115690.0,115680.0,1.93839165]
[1761547109400,0.00061569,115690.0,115680.0,1.73587165]
[1761547109599,0.00061569,115690.0,115680.0,1.88815165]
[1761547110006,0.00061569,115690.0,115680.0,1.88315165]
[1761547110428,0.00061569,115690.0,115680.0,1.88615165]
[1761547111283,0.00061569,115690.0,115680.0,1.87615166]
[1761547111877,0.00061569,115690.0,115680.0,1.88615165]
[1761547112245,0.00061569,115690.0,115680.0,1.63405265]
[1761547112450,0.00061569,115690.0,115680.0,1.78633265]
[1761547112800,0.00061569,115690.0,115680.0,1.26502592]
[1761547113012,0.00061569,115690.0,115680.0,1.60502592]
[1761547113252,0.00061569,115690.0,115680.0,1.59502593]
[1761547113738,0.00061569,115690.0,115680.0,1.60202592]
[1761547115897,0.00161569,115690.0,115680.0,1.60202592]
[1761547117299,0.00161569,115690.0,115680.0,1.89184493]
[1761547118341,0.00061569,115690.0,115680.0,1.89184493]
[1761547118910,0.00061569,115690.0,115680.0,1.89684493]
[1761547121984,0.00061569,115690.0,115680.0,1.88684494]
[1761547122173,0.00061569,115690.0,115680.0,1.89684493]
[1761547126100,0.00061569,115690.0,115680.0,1.88684494]
[1761547126548,0.00061569,115690.0,115680.0,1.89684493]
[1761547127156,0.00061569,115690.0,115680.0,1.91752389]
[1761547127367,0.00061569,115690.0,115680.0,1.92752388]
[1761547128795,0.00061569,115690.0,115680.0,1.91752389]